[Event "*** Titled Tuesday Blitz"]
[Site "Chess.com"]
[Date "2020.04.07"]
[Round "1"]
[White "jamengrand"]
[Black "LawrenceTrent"]
[Result "1-0"]
[WhiteElo "2156"]
[BlackElo "2503"]
[TimeControl "180+1"]
[EndTime "13:08:22 PDT"]
[Termination "jamengrand won by resignation"]

1. e4 {[%clk 0:03:00.9]} 1... c5 {[%clk 0:02:59.5]} 2. Nf3 {[%clk 0:02:54.5]}
2... Nc6 {[%clk 0:02:57]} 3. d4 {[%clk 0:02:53.5]} 3... cxd4 {[%clk 0:02:56.6]}
4. Nxd4 {[%clk 0:02:54.4]} 4... Nf6 {[%clk 0:02:57.2]} 5. Nc3 {[%clk 0:02:54]}
5... d6 {[%clk 0:02:57.4]} 6. f3 {[%clk 0:02:53]} 6... g6 {[%clk 0:02:56.8]} 7.
Be3 {[%clk 0:02:52.6]} 7... Bg7 {[%clk 0:02:57.2]} 8. Qd2 {[%clk 0:02:52.7]}
8... O-O {[%clk 0:02:56.1]} 9. Bc4 {[%clk 0:02:52.6]} 9... Bd7 {[%clk
0:02:55.1]} 10. O-O-O {[%clk 0:02:45.3]} 10... Rc8 {[%clk 0:02:52]} 11. Bb3
{[%clk 0:02:45]} 11... Ne5 {[%clk 0:02:52.2]} 12. Kb1 {[%clk 0:02:44.9]} 12...
Re8 {[%clk 0:02:45.5]} 13. g4 {[%clk 0:02:40.7]} 13... h5 {[%clk 0:02:29.7]} 14.
gxh5 {[%clk 0:02:39]} 14... Nxh5 {[%clk 0:02:29.5]} 15. Rhg1 {[%clk 0:02:32.7]}
15... Nc4 {[%clk 0:02:28.9]} 16. Bxc4 {[%clk 0:02:32.1]} 16... Rxc4 {[%clk
0:02:26.7]} 17. Nce2 {[%clk 0:02:21]} 17... Qc7 {[%clk 0:02:16.5]} 18. Nf5
{[%clk 0:02:17.3]} 18... gxf5 {[%clk 0:01:49.6]} 19. Bh6 {[%clk 0:02:16.2]}
19... Qc5 {[%clk 0:01:48.9]} 20. Bxg7 {[%clk 0:02:10.6]} 20... Nxg7 {[%clk
0:01:48.5]} 21. Rxg7+ {[%clk 0:02:10]} 21... Kxg7 {[%clk 0:01:47.2]} 22. Qg5+
{[%clk 0:02:09.8]} 22... Kh7 {[%clk 0:01:42.1]} 23. Rg1 {[%clk 0:01:24.2]} 23...
Qxg1+ {[%clk 0:01:41.3]} 24. Nxg1 {[%clk 0:01:24.3]} 24... Rg8 {[%clk 0:01:35]}
25. Qh4+ {[%clk 0:01:21.9]} 25... Kg7 {[%clk 0:01:35.2]} 26. Qxe7 {[%clk
0:01:19.9]} 26... Be6 {[%clk 0:01:29.6]} 27. Ne2 {[%clk 0:00:57.3]} 27... fxe4
{[%clk 0:01:20.4]} 28. f4 {[%clk 0:00:57.3]} 28... Rh8 {[%clk 0:01:09.2]} 29. b3
{[%clk 0:00:51.6]} 29... Rc6 {[%clk 0:01:08.3]} 30. Ng3 {[%clk 0:00:50.5]} 30...
Rxh2 {[%clk 0:00:54.8]} 31. f5 {[%clk 0:00:49.7]} 31... Bd5 {[%clk 0:00:36.8]}
32. Qg5+ {[%clk 0:00:40.3]} 32... Kf8 {[%clk 0:00:34.7]} 33. Qd8+ {[%clk
0:00:39.9]} 33... Kg7 {[%clk 0:00:34.9]} 34. Qg5+ {[%clk 0:00:32.3]} 34... Kf8
{[%clk 0:00:35.2]} 35. c4 {[%clk 0:00:26.5]} 35... Bxc4 {[%clk 0:00:29.6]} 36.
bxc4 {[%clk 0:00:26.4]} 36... Rb6+ {[%clk 0:00:26.7]} 37. Kc1 {[%clk 0:00:26.2]}
37... Rg2 {[%clk 0:00:23.1]} 38. Qd8+ {[%clk 0:00:25.2]} 38... Kg7 {[%clk
0:00:23.5]} 39. Nh5+ {[%clk 0:00:23.7]} 39... Kh6 {[%clk 0:00:23.8]} 40. Qh4
{[%clk 0:00:23.7]} 40... Rbb2 {[%clk 0:00:18.2]} 41. Nf4+ {[%clk 0:00:21.3]}
41... Kg7 {[%clk 0:00:16.8]} 42. Nxg2 {[%clk 0:00:21.4]} 42... Rxg2 {[%clk
0:00:17.7]} 43. Qxe4 {[%clk 0:00:21.3]} 43... Rxa2 {[%clk 0:00:17.8]} 44. Qd4+
{[%clk 0:00:20.8]} 44... f6 {[%clk 0:00:16.5]} 45. Qxd6 {[%clk 0:00:20.3]} 45...
Ra6 {[%clk 0:00:16.1]} 46. Qe7+ {[%clk 0:00:20.2]} 46... Kh6 {[%clk 0:00:16.2]}
47. Kd2 {[%clk 0:00:18.9]} 47... Kg5 {[%clk 0:00:16.1]} 48. Qe4 {[%clk
0:00:17.6]} 48... Rd6+ {[%clk 0:00:15.5]} 49. Kc3 {[%clk 0:00:16.4]} 49... Rc6
{[%clk 0:00:16]} 50. Kd4 {[%clk 0:00:15.9]} 50... Rd6+ {[%clk 0:00:15.6]} 51.
Kc5 {[%clk 0:00:16.3]} 51... Rc6+ {[%clk 0:00:15.8]} 52. Kd5 {[%clk 0:00:16.9]}
52... Rc7 {[%clk 0:00:14.4]} 53. Ke6 {[%clk 0:00:17.2]} 53... Rc6+ {[%clk
0:00:14.2]} 54. Kf7 {[%clk 0:00:17.1]} 54... Rc7+ {[%clk 0:00:14.5]} 55. Ke8
{[%clk 0:00:17.8]} 55... Rc5 {[%clk 0:00:14.1]} 56. Qg2+ {[%clk 0:00:17.2]}
56... Kxf5 {[%clk 0:00:14]} 57. Qf2+ {[%clk 0:00:17.9]} 57... Ke4 {[%clk
0:00:12.1]} 58. Qxc5 {[%clk 0:00:18.8]} 1-0

[Event "*** Titled Tuesday Blitz"]
[Site "Chess.com"]
[Date "2020.04.07"]
[Round "1"]
[White "StephenDedalus83"]
[Black "FrankieJay"]
[Result "0-1"]
[WhiteElo "2728"]
[BlackElo "2413"]
[TimeControl "180+1"]
[EndTime "13:08:24 PDT"]
[Termination "FrankieJay won by resignation"]

1. e4 {[%clk 0:03:00.9]} 1... c5 {[%clk 0:02:59.6]} 2. Nf3 {[%clk 0:03:00.2]}
2... Nc6 {[%clk 0:02:59.7]} 3. d4 {[%clk 0:03:00.2]} 3... cxd4 {[%clk
0:02:58.4]} 4. Nxd4 {[%clk 0:03:01.1]} 4... Nf6 {[%clk 0:02:59]} 5. Nc3 {[%clk
0:03:01.1]} 5... e5 {[%clk 0:02:58.4]} 6. Ndb5 {[%clk 0:03:00.1]} 6... d6 {[%clk
0:02:56.2]} 7. Bg5 {[%clk 0:02:59.1]} 7... a6 {[%clk 0:02:56.1]} 8. Na3 {[%clk
0:02:59.1]} 8... b5 {[%clk 0:02:56.8]} 9. Nd5 {[%clk 0:02:58.8]} 9... Be7 {[%clk
0:02:56.8]} 10. Bxf6 {[%clk 0:02:58.9]} 10... Bxf6 {[%clk 0:02:57.5]} 11. c3
{[%clk 0:02:59.3]} 11... O-O {[%clk 0:02:57.9]} 12. Nc2 {[%clk 0:02:59]} 12...
Rb8 {[%clk 0:02:58.3]} 13. a3 {[%clk 0:02:53.3]} 13... Bg5 {[%clk 0:02:50.8]}
14. Ncb4 {[%clk 0:02:52.4]} 14... Qd7 {[%clk 0:02:35]} 15. Qd3 {[%clk 0:02:40]}
15... Na5 {[%clk 0:02:15.1]} 16. Be2 {[%clk 0:02:06.7]} 16... Bb7 {[%clk
0:02:03.5]} 17. O-O {[%clk 0:02:05]} 17... Nc4 {[%clk 0:01:48.8]} 18. b3 {[%clk
0:02:03.9]} 18... Nd2 {[%clk 0:01:40.9]} 19. h4 {[%clk 0:01:22.1]} 19... Bh6
{[%clk 0:01:32.3]} 20. Rfd1 {[%clk 0:01:18.8]} 20... Nxb3 {[%clk 0:01:25.9]} 21.
Rab1 {[%clk 0:01:14.8]} 21... Nc5 {[%clk 0:01:25.9]} 22. Qf3 {[%clk 0:01:09.7]}
22... a5 {[%clk 0:00:58.7]} 23. Nc2 {[%clk 0:01:08.5]} 23... Bc6 {[%clk
0:00:52.3]} 24. g4 {[%clk 0:01:01.2]} 24... f6 {[%clk 0:00:49.4]} 25. Bf1 {[%clk
0:00:47.5]} 25... Ne6 {[%clk 0:00:39.9]} 26. Nce3 {[%clk 0:00:35.8]} 26... Bxe3
{[%clk 0:00:39.2]} 27. Nxe3 {[%clk 0:00:35.3]} 27... Nf4 {[%clk 0:00:36.8]} 28.
Nf5 {[%clk 0:00:35.2]} 28... Qb7 {[%clk 0:00:31.5]} 29. Nxd6 {[%clk 0:00:34.5]}
29... Qe7 {[%clk 0:00:25.5]} 30. Bxb5 {[%clk 0:00:32.5]} 30... Bxb5 {[%clk
0:00:25.9]} 31. Nxb5 {[%clk 0:00:32.3]} 31... Qc5 {[%clk 0:00:25.9]} 32. Qe3
{[%clk 0:00:31.8]} 32... Qxe3 {[%clk 0:00:21.1]} 33. fxe3 {[%clk 0:00:31.6]}
33... Rxb5 {[%clk 0:00:20.8]} 34. exf4 {[%clk 0:00:31.2]} 34... Rc5 {[%clk
0:00:16.9]} 35. fxe5 {[%clk 0:00:29.5]} 35... fxe5 {[%clk 0:00:17.3]} 36. Rd3
{[%clk 0:00:29.4]} 36... Rfc8 {[%clk 0:00:12.4]} 37. Rc1 {[%clk 0:00:28.5]}
37... Rc4 {[%clk 0:00:11.4]} 38. Re3 {[%clk 0:00:28.7]} 38... Ra4 {[%clk
0:00:10.4]} 39. Ra1 {[%clk 0:00:28.7]} 39... Rcc4 {[%clk 0:00:10.2]} 40. Kf2
{[%clk 0:00:27.7]} 40... Rxe4 {[%clk 0:00:09.9]} 41. Rxe4 {[%clk 0:00:27.9]}
41... Rxe4 {[%clk 0:00:10.8]} 42. Kf3 {[%clk 0:00:28.2]} 42... Rc4 {[%clk
0:00:11]} 43. Rc1 {[%clk 0:00:27.8]} 43... Kf7 {[%clk 0:00:11.2]} 44. h5 {[%clk
0:00:26.6]} 44... Ke6 {[%clk 0:00:10.7]} 45. Kg3 {[%clk 0:00:24.8]} 45... g6
{[%clk 0:00:09.4]} 46. h6 {[%clk 0:00:24.2]} 46... Kf6 {[%clk 0:00:07.8]} 47.
Kh4 {[%clk 0:00:23.9]} 47... g5+ {[%clk 0:00:05.4]} 48. Kg3 {[%clk 0:00:20.3]}
48... Kg6 {[%clk 0:00:05.3]} 49. Kf3 {[%clk 0:00:19.1]} 49... Kxh6 {[%clk
0:00:05.4]} 50. Ke3 {[%clk 0:00:19.3]} 50... Kg6 {[%clk 0:00:05.7]} 51. Kd3
{[%clk 0:00:19.5]} 51... Rxg4 {[%clk 0:00:05]} 52. c4 {[%clk 0:00:20]} 52...
Rd4+ {[%clk 0:00:05.2]} 53. Ke3 {[%clk 0:00:19.5]} 53... Kf5 {[%clk 0:00:03.6]}
54. c5 {[%clk 0:00:19.7]} 54... Rd7 {[%clk 0:00:04.1]} 55. c6 {[%clk 0:00:19.7]}
55... Rc7 {[%clk 0:00:04.6]} 56. Rc5 {[%clk 0:00:18.8]} 56... Ke6 {[%clk
0:00:04.4]} 57. Ke4 {[%clk 0:00:18.7]} 57... Kd6 {[%clk 0:00:04.7]} 58. Rxe5
{[%clk 0:00:18.3]} 58... Re7 {[%clk 0:00:01.7]} 59. Rxe7 {[%clk 0:00:16.8]}
59... Kxe7 {[%clk 0:00:02.6]} 60. Kf5 {[%clk 0:00:17.3]} 60... Kd6 {[%clk
0:00:02.9]} 61. Kxg5 {[%clk 0:00:17.2]} 61... Kxc6 {[%clk 0:00:03.5]} 62. Kh6
{[%clk 0:00:17.8]} 62... Kb5 {[%clk 0:00:04.4]} 63. Kxh7 {[%clk 0:00:18.4]}
63... Ka4 {[%clk 0:00:05.3]} 64. Kg6 {[%clk 0:00:19.2]} 64... Kxa3 {[%clk
0:00:06.2]} 65. Kf5 {[%clk 0:00:19.8]} 65... Kb3 {[%clk 0:00:07.1]} 66. Ke4
{[%clk 0:00:20.5]} 66... a4 {[%clk 0:00:08]} 67. Kd3 {[%clk 0:00:21.1]} 67... a3
{[%clk 0:00:08.5]} 0-1

[Event "*** Titled Tuesday Blitz"]
[Site "Chess.com"]
[Date "2020.04.07"]
[Round "1"]
[White "1random"]
[Black "Bauxi435"]
[Result "1-0"]
[WhiteElo "2724"]
[BlackElo "2371"]
[TimeControl "180+1"]
[EndTime "13:08:24 PDT"]
[Termination "1random won by checkmate"]

1. d4 {[%clk 0:03:00.9]} 1... Nf6 {[%clk 0:02:59.8]} 2. c4 {[%clk 0:02:58.7]}
2... e6 {[%clk 0:03:00]} 3. Nf3 {[%clk 0:02:59.3]} 3... d5 {[%clk 0:02:57.9]} 4.
Nc3 {[%clk 0:02:59.7]} 4... dxc4 {[%clk 0:02:57.4]} 5. e4 {[%clk 0:02:59.5]}
5... Bb4 {[%clk 0:02:57.5]} 6. Bg5 {[%clk 0:02:59.5]} 6... b5 {[%clk 0:02:56.3]}
7. a4 {[%clk 0:02:42.8]} 7... c5 {[%clk 0:02:43.7]} 8. axb5 {[%clk 0:02:39]}
8... cxd4 {[%clk 0:02:41.5]} 9. Nxd4 {[%clk 0:02:37.1]} 9... Qb6 {[%clk
0:02:29.1]} 10. f3 {[%clk 0:02:12.6]} 10... Bb7 {[%clk 0:02:21.2]} 11. Be3
{[%clk 0:02:11.5]} 11... Bc5 {[%clk 0:02:17.8]} 12. Na4 {[%clk 0:02:03]} 12...
Bb4+ {[%clk 0:02:16.4]} 13. Kf2 {[%clk 0:02:02.4]} 13... Qd8 {[%clk 0:02:05.1]}
14. Bxc4 {[%clk 0:01:54.9]} 14... O-O {[%clk 0:02:00.2]} 15. Qb3 {[%clk
0:01:52.4]} 15... Qe7 {[%clk 0:01:55.7]} 16. Rhd1 {[%clk 0:01:42.3]} 16... Nbd7
{[%clk 0:01:51.7]} 17. Kg1 {[%clk 0:00:43.8]} 17... Ne5 {[%clk 0:01:37.2]} 18.
Bf1 {[%clk 0:00:40.4]} 18... Rfd8 {[%clk 0:01:32.2]} 19. Nc2 {[%clk 0:00:25.2]}
19... Ba5 {[%clk 0:00:56.2]} 20. Nc5 {[%clk 0:00:18.1]} 20... Bb6 {[%clk
0:00:47.6]} 21. Nxb7 {[%clk 0:00:18.4]} 21... Qxb7 {[%clk 0:00:47.5]} 22. Nb4
{[%clk 0:00:15.7]} 22... Neg4 {[%clk 0:00:36.8]} 23. fxg4 {[%clk 0:00:09]} 23...
Nxg4 {[%clk 0:00:37.7]} 24. Nc2 {[%clk 0:00:08.4]} 24... Qxe4 {[%clk 0:00:32]}
25. Bxb6 {[%clk 0:00:06.6]} 25... axb6 {[%clk 0:00:28.9]} 26. h3 {[%clk
0:00:05.8]} 26... Rxd1 {[%clk 0:00:22.8]} 27. Rxd1 {[%clk 0:00:02.5]} 27... Nf6
{[%clk 0:00:21.4]} 28. Qd3 {[%clk 0:00:02.7]} 28... Qe5 {[%clk 0:00:19.7]} 29.
Qd4 {[%clk 0:00:03.6]} 29... Qb8 {[%clk 0:00:15.3]} 30. Nb4 {[%clk 0:00:04.2]}
30... h6 {[%clk 0:00:14.6]} 31. Nc6 {[%clk 0:00:04.7]} 31... Qg3 {[%clk
0:00:13.3]} 32. Qxb6 {[%clk 0:00:04.5]} 32... Ra2 {[%clk 0:00:11.6]} 33. Qf2
{[%clk 0:00:04.9]} 33... Qxf2+ {[%clk 0:00:10.9]} 34. Kxf2 {[%clk 0:00:05.8]}
34... Rxb2+ {[%clk 0:00:11.7]} 35. Kg1 {[%clk 0:00:05.4]} 35... Nd5 {[%clk
0:00:12.2]} 36. Re1 {[%clk 0:00:03.3]} 36... Kf8 {[%clk 0:00:12]} 37. Re2 {[%clk
0:00:03.7]} 37... Rb3 {[%clk 0:00:11.7]} 38. Rd2 {[%clk 0:00:04.4]} 38... Ke8
{[%clk 0:00:10.9]} 39. Bc4 {[%clk 0:00:04.4]} 39... Rb1+ {[%clk 0:00:10.5]} 40.
Kh2 {[%clk 0:00:05.1]} 40... Ne7 {[%clk 0:00:10.3]} 41. Nxe7 {[%clk 0:00:04.7]}
41... Kxe7 {[%clk 0:00:10.4]} 42. Bd3 {[%clk 0:00:05.1]} 42... Rb4 {[%clk
0:00:09.6]} 43. Rd1 {[%clk 0:00:05.1]} 43... Rb3 {[%clk 0:00:09.3]} 44. Bf1
{[%clk 0:00:04]} 44... e5 {[%clk 0:00:08.7]} 45. Kg1 {[%clk 0:00:04.6]} 45... e4
{[%clk 0:00:09.1]} 46. Kf2 {[%clk 0:00:05.3]} 46... f5 {[%clk 0:00:09.7]} 47.
Rd5 {[%clk 0:00:04.8]} 47... Ke6 {[%clk 0:00:09]} 48. Bc4 {[%clk 0:00:03.5]}
48... Rb2+ {[%clk 0:00:08.3]} 49. Ke3 {[%clk 0:00:03.4]} 49... Rb4 {[%clk
0:00:06]} 50. Kd4 {[%clk 0:00:02.7]} 50... Kf6 {[%clk 0:00:06.2]} 51. Kc5 {[%clk
0:00:01.6]} 51... Rb2 {[%clk 0:00:06.8]} 52. b6 {[%clk 0:00:02.2]} 52... e3
{[%clk 0:00:06.5]} 53. b7 {[%clk 0:00:02]} 53... Rc2 {[%clk 0:00:06.6]} 54. b8=Q
{[%clk 0:00:01.8]} 54... Rxc4+ {[%clk 0:00:07.2]} 55. Kxc4 {[%clk 0:00:02]}
55... e2 {[%clk 0:00:08.1]} 56. Qe5+ {[%clk 0:00:02.4]} 56... Kg6 {[%clk
0:00:08.3]} 57. Qxf5# {[%clk 0:00:03.2]} 1-0

[Event "*** Titled Tuesday Blitz"]
[Site "Chess.com"]
[Date "2020.04.07"]
[Round "1"]
[White "MisiekZielony"]
[Black "FLamps8"]
[Result "0-1"]
[WhiteElo "2131"]
[BlackElo "2531"]
[TimeControl "180+1"]
[EndTime "13:08:24 PDT"]
[Termination "FLamps8 won on time"]

1. c4 {[%clk 0:02:59.5]} 1... c6 {[%clk 0:02:55.9]} 2. Nc3 {[%clk 0:02:58.6]}
2... d5 {[%clk 0:02:55.7]} 3. cxd5 {[%clk 0:02:58.9]} 3... cxd5 {[%clk
0:02:55.5]} 4. d4 {[%clk 0:02:59.1]} 4... Nc6 {[%clk 0:02:52.8]} 5. Nf3 {[%clk
0:02:59]} 5... a6 {[%clk 0:02:49.2]} 6. Bf4 {[%clk 0:02:57.1]} 6... Bf5 {[%clk
0:02:39.3]} 7. e3 {[%clk 0:02:55.4]} 7... e6 {[%clk 0:02:39.2]} 8. Bd3 {[%clk
0:02:54.1]} 8... Bxd3 {[%clk 0:02:34.5]} 9. Qxd3 {[%clk 0:02:53.8]} 9... Bd6
{[%clk 0:02:35.4]} 10. Bg3 {[%clk 0:02:43.3]} 10... Nge7 {[%clk 0:02:29.1]} 11.
O-O {[%clk 0:02:43]} 11... O-O {[%clk 0:02:25.9]} 12. Rfc1 {[%clk 0:02:42.3]}
12... Nf5 {[%clk 0:02:24.8]} 13. Na4 {[%clk 0:02:23.9]} 13... Nxg3 {[%clk
0:02:23.2]} 14. hxg3 {[%clk 0:02:22.6]} 14... Rc8 {[%clk 0:02:15.7]} 15. Nc5
{[%clk 0:02:05.5]} 15... Qe7 {[%clk 0:02:14.4]} 16. Na4 {[%clk 0:01:48.4]} 16...
f5 {[%clk 0:02:02.6]} 17. a3 {[%clk 0:01:43.6]} 17... Rf6 {[%clk 0:02:01.1]} 18.
Ne5 {[%clk 0:01:28.7]} 18... Bxe5 {[%clk 0:01:54.6]} 19. dxe5 {[%clk 0:01:28.1]}
19... Rh6 {[%clk 0:01:55.5]} 20. f4 {[%clk 0:01:27.6]} 20... Qf7 {[%clk
0:01:51.4]} 21. Nc5 {[%clk 0:01:17]} 21... g5 {[%clk 0:01:32.8]} 22. Rc2 {[%clk
0:01:13.1]} 22... gxf4 {[%clk 0:01:19.1]} 23. exf4 {[%clk 0:01:12.6]} 23... Rg6
{[%clk 0:01:13.3]} 24. Rac1 {[%clk 0:01:09.6]} 24... Kh8 {[%clk 0:01:11.5]} 25.
Nb3 {[%clk 0:00:46.6]} 25... Rcg8 {[%clk 0:01:09.7]} 26. Rc3 {[%clk 0:00:46.2]}
26... d4 {[%clk 0:00:52.9]} 27. Nxd4 {[%clk 0:00:45.7]} 27... Rxg3 {[%clk
0:00:49.9]} 28. Qxg3 {[%clk 0:00:44.2]} 28... Nxd4 {[%clk 0:00:41.4]} 29. Qe3
{[%clk 0:00:42.3]} 29... Qd7 {[%clk 0:00:06.4]} 30. Rd3 {[%clk 0:00:27.2]} 30...
Qg7 {[%clk 0:00:06.2]} 31. g3 {[%clk 0:00:26.5]} 31... Nc6 {[%clk 0:00:06]} 32.
Qf3 {[%clk 0:00:24.7]} 32... Ne7 {[%clk 0:00:05.5]} 33. Rcd1 {[%clk 0:00:23.9]}
33... Nd5 {[%clk 0:00:05.8]} 34. Kf2 {[%clk 0:00:21.8]} 34... Qc7 {[%clk
0:00:03.9]} 35. R1d2 {[%clk 0:00:18.6]} 35... Qb6+ {[%clk 0:00:03.8]} 36. Rd4
{[%clk 0:00:18.9]} 36... Rc8 {[%clk 0:00:02.9]} 37. Qd3 {[%clk 0:00:17.6]} 37...
Rc1 {[%clk 0:00:03.1]} 38. Kg2 {[%clk 0:00:17.4]} 38... Qc6 {[%clk 0:00:03.4]}
39. Qf3 {[%clk 0:00:16.7]} 39... Rc2 {[%clk 0:00:02.9]} 40. Kh2 {[%clk
0:00:13.6]} 40... Rxd2+ {[%clk 0:00:02.7]} 41. Rxd2 {[%clk 0:00:11.4]} 41... Qc1
{[%clk 0:00:03.3]} 42. Re2 {[%clk 0:00:10.2]} 42... Qc4 {[%clk 0:00:02.8]} 43.
Kg2 {[%clk 0:00:09.8]} 43... Qd4 {[%clk 0:00:02.8]} 44. Kh3 {[%clk 0:00:08.6]}
44... Qg1 {[%clk 0:00:01.8]} 45. Qg2 {[%clk 0:00:07.4]} 45... Qd4 {[%clk
0:00:01.6]} 46. Rc2 {[%clk 0:00:06.6]} 46... Qd3 {[%clk 0:00:01.9]} 47. Qe2
{[%clk 0:00:06]} 47... Nxf4+ {[%clk 0:00:01.6]} 48. Kh2 {[%clk 0:00:05.2]} 48...
Nxe2 {[%clk 0:00:02.5]} 49. Rc8+ {[%clk 0:00:04.4]} 49... Kg7 {[%clk 0:00:02.9]}
50. Rc7+ {[%clk 0:00:03.9]} 50... Kg6 {[%clk 0:00:03.3]} 51. Rg7+ {[%clk
0:00:03.7]} 51... Kxg7 {[%clk 0:00:03.2]} 0-1

[Event "*** Titled Tuesday Blitz"]
[Site "Chess.com"]
[Date "2020.04.07"]
[Round "1"]
[White "LiemLe"]
[Black "TregubovP"]
[Result "1-0"]
[WhiteElo "2959"]
[BlackElo "2476"]
[TimeControl "180+1"]
[EndTime "13:08:28 PDT"]
[Termination "LiemLe won by resignation"]

1. e4 {[%clk 0:03:00.9]} 1... e5 {[%clk 0:02:59.2]} 2. Nf3 {[%clk 0:03:00.4]}
2... Nf6 {[%clk 0:02:59.6]} 3. Nxe5 {[%clk 0:02:58.8]} 3... d6 {[%clk
0:02:59.3]} 4. Nf3 {[%clk 0:02:59.4]} 4... Nxe4 {[%clk 0:02:59.6]} 5. d4 {[%clk
0:03:00.3]} 5... d5 {[%clk 0:02:58.6]} 6. Bd3 {[%clk 0:03:00.4]} 6... Bd6 {[%clk
0:02:58.9]} 7. O-O {[%clk 0:02:59.2]} 7... O-O {[%clk 0:02:59.4]} 8. c4 {[%clk
0:02:57.5]} 8... c6 {[%clk 0:02:59.8]} 9. Nc3 {[%clk 0:02:55.1]} 9... Nxc3
{[%clk 0:02:56.9]} 10. bxc3 {[%clk 0:02:56]} 10... dxc4 {[%clk 0:02:57.2]} 11.
Bxc4 {[%clk 0:02:56.9]} 11... Bf5 {[%clk 0:02:57.3]} 12. Re1 {[%clk 0:02:44.5]}
12... Nd7 {[%clk 0:02:54.9]} 13. Bb3 {[%clk 0:02:33.6]} 13... h6 {[%clk
0:02:48.2]} 14. h3 {[%clk 0:02:08.2]} 14... Re8 {[%clk 0:02:44.9]} 15. Be3
{[%clk 0:01:50]} 15... Nb6 {[%clk 0:02:34.1]} 16. c4 {[%clk 0:01:37.1]} 16...
Bb4 {[%clk 0:02:33.9]} 17. Bd2 {[%clk 0:01:35.8]} 17... Bxd2 {[%clk 0:02:15.6]}
18. Qxd2 {[%clk 0:01:35.2]} 18... Qf6 {[%clk 0:02:14.8]} 19. Qf4 {[%clk
0:01:22]} 19... Rad8 {[%clk 0:01:50.6]} 20. Rxe8+ {[%clk 0:01:06.7]} 20... Rxe8
{[%clk 0:01:49.2]} 21. Rd1 {[%clk 0:01:07.6]} 21... Be4 {[%clk 0:01:30.6]} 22.
Qxf6 {[%clk 0:01:07.2]} 22... gxf6 {[%clk 0:01:30.3]} 23. Nh2 {[%clk 0:01:04.9]}
23... Kg7 {[%clk 0:01:28.4]} 24. f3 {[%clk 0:00:57.9]} 24... Bf5 {[%clk
0:01:24.6]} 25. Kf2 {[%clk 0:00:58.4]} 25... a5 {[%clk 0:01:22.6]} 26. c5 {[%clk
0:00:53.3]} 26... a4 {[%clk 0:01:14.2]} 27. Bxf7 {[%clk 0:00:39.5]} 27... Kxf7
{[%clk 0:01:13.5]} 28. cxb6 {[%clk 0:00:40.2]} 28... Be6 {[%clk 0:01:05]} 29. a3
{[%clk 0:00:37]} 29... Bb3 {[%clk 0:01:04.1]} 30. Rc1 {[%clk 0:00:30.9]} 30...
Ra8 {[%clk 0:01:01]} 31. Ng4 {[%clk 0:00:19.2]} 31... h5 {[%clk 0:01:01.4]} 32.
Ne3 {[%clk 0:00:19.2]} 32... Ra6 {[%clk 0:01:01.9]} 33. d5 {[%clk 0:00:17.1]}
33... Rxb6 {[%clk 0:01:02.2]} 34. dxc6 {[%clk 0:00:17.2]} 34... bxc6 {[%clk
0:01:02.5]} 35. Rc5 {[%clk 0:00:16.7]} 35... Kg6 {[%clk 0:00:55.5]} 36. h4
{[%clk 0:00:14.8]} 36... Be6 {[%clk 0:00:51]} 37. Ra5 {[%clk 0:00:13.7]} 37...
Rb2+ {[%clk 0:00:50.8]} 38. Kg3 {[%clk 0:00:13.7]} 38... Rb3 {[%clk 0:00:51]}
39. Nc2 {[%clk 0:00:13.6]} 39... Rc3 {[%clk 0:00:48.7]} 40. Nd4 {[%clk 0:00:14]}
40... Bb3 {[%clk 0:00:48.7]} 41. Nf5 {[%clk 0:00:11.6]} 41... c5 {[%clk
0:00:44.9]} 42. Ne7+ {[%clk 0:00:10.4]} 42... Kf7 {[%clk 0:00:45]} 43. Nc8
{[%clk 0:00:10.5]} 43... Ke6 {[%clk 0:00:43.2]} 44. Nb6 {[%clk 0:00:10.4]} 44...
Kd6 {[%clk 0:00:16]} 45. Nxa4 {[%clk 0:00:10.8]} 45... Rc2 {[%clk 0:00:16.1]}
46. Ra6+ {[%clk 0:00:10.1]} 46... Kd5 {[%clk 0:00:15.1]} 47. Nb6+ {[%clk
0:00:10.4]} 47... Kd4 {[%clk 0:00:15.3]} 48. Nd7 {[%clk 0:00:09.4]} 48... c4
{[%clk 0:00:14.4]} 49. Rd6+ {[%clk 0:00:09]} 49... Ke3 {[%clk 0:00:14.2]} 50.
Nxf6 {[%clk 0:00:07.9]} 50... c3 {[%clk 0:00:13.6]} 51. Rc6 {[%clk 0:00:07.3]}
51... Rc1 {[%clk 0:00:12.1]} 52. Ne4 {[%clk 0:00:06.7]} 52... c2 {[%clk
0:00:11.8]} 53. Rc3+ {[%clk 0:00:06.9]} 53... Ke2 {[%clk 0:00:10.8]} 54. Rxb3
{[%clk 0:00:06.9]} 54... Ra1 {[%clk 0:00:10.8]} 55. Rc3 {[%clk 0:00:06.7]} 55...
c1=Q {[%clk 0:00:11]} 56. Rxc1 {[%clk 0:00:07]} 56... Rxc1 {[%clk 0:00:11.6]}
57. Kf4 {[%clk 0:00:07.4]} 57... Kf1 {[%clk 0:00:11.5]} 58. g4 {[%clk
0:00:07.4]} 58... hxg4 {[%clk 0:00:11]} 59. fxg4 {[%clk 0:00:08.3]} 59... Kg2
{[%clk 0:00:11.4]} 60. h5 {[%clk 0:00:08]} 60... Kh3 {[%clk 0:00:11.8]} 61. h6
{[%clk 0:00:08.2]} 61... Kh4 {[%clk 0:00:12.1]} 62. h7 {[%clk 0:00:07.6]} 62...
Rc8 {[%clk 0:00:12.5]} 63. g5 {[%clk 0:00:08.1]} 63... Rf8+ {[%clk 0:00:11.9]}
64. Nf6 {[%clk 0:00:07.9]} 64... Kh3 {[%clk 0:00:08.6]} 65. Kf5 {[%clk
0:00:08.1]} 65... Kh4 {[%clk 0:00:09]} 66. g6 {[%clk 0:00:08.5]} 1-0